bitfinex/quotes_SOLUSD_20220103
["timestamp","ask_amount","ask_price","bid_price","bid_amount"]
[1641253013583,6.74515445,170.84,170.75,9.0434]
[1641253013783,6.74515445,170.84,170.75,9.5434]
[1641253024697,6.74515445,170.84,170.76,8.56]
[1641253024896,6.74515445,170.84,170.79,8.7815]
[1641253025195,6.74515445,170.84,170.79,9.0415]
[1641253025397,6.74515445,170.84,170.79,9.5415]
[1641253025594,6.74515445,170.84,170.8,28.35435877]
[1641253025994,6.74515445,170.84,170.8,29.11435877]
[1641253026595,6.74515445,170.84,170.8,37.89545877]
[1641253031629,6.74515445,170.84,170.8,9.5411]
[1641253037233,6.74515445,170.84,170.81,8.56]
[1641253037433,6.74515445,170.84,170.82,6.06439992]
[1641253037636,6.74515445,170.84,170.83,60.56]
[1641253037837,6.74515445,170.84,170.83,61.06]
[1641253038037,6.74515445,170.84,170.83,9.32]
[1641253038640,6.74515445,170.84,170.83,18.0976]
[1641253043648,77.07712398,170.92,170.88,8.7775]
[1641253043847,2.2714105,170.93,170.88,35.93389975]
[1641253046053,2.2714105,170.93,170.88,27.15639975]
[1641253048473,2.2714105,170.93,170.87,8.7782]
[1641253048677,19.8702105,170.93,170.8,8.8998]
[1641253048873,20.3702105,170.93,170.8,8.8998]
[1641253049072,11.3314105,170.93,170.8,8.8998]
[1641253049274,10.8314105,170.93,170.78,8.56]
[1641253049474,1.3027,170.92,170.79,26.15028166]
[1641253049674,1.3027,170.92,170.8,8.7803]
[1641253049875,28.08487578,170.91,170.8,9.2803]
[1641253050375,2.33879364,170.9,170.8,9.2803]
[1641253050577,2.59879364,170.9,170.8,9.2803]
[1641253051180,3.84539364,170.9,170.8,9.2803]
[1641253051477,8.7811,170.88,170.8,9.5403]
[1641253051978,2.44337414,170.87,170.8,9.5403]
[1641253052379,2.70337414,170.87,170.8,9.5403]
[1641253052578,11.48457414,170.87,170.8,9.5403]
[1641253052780,2.44337414,170.87,170.8,9.5403]
[1641253052978,2.44337414,170.87,170.8,32.7259]
[1641253053579,25.4301,170.9,170.8,32.7259]
[1641253053783,8.7802,170.9,170.8,34.0535]
[1641253053979,1.2708,170.94,170.8,34.0535]
[1641253054179,23.0888,170.93,170.8,34.0535]
[1641253054780,11.79327563,170.92,170.8,34.0535]
[1641253055382,1.2498,170.91,170.8,34.0535]
[1641253056882,1.2498,170.91,170.8,42.6135]
[1641253058888,10.0291,170.91,170.8,42.6135]
[1641253059084,1.5098,170.91,170.8,19.4279]
[1641253059983,2.0098,170.91,170.8,18.1003]
[1641253060384,1.5098,170.91,170.8,18.1003]
[1641253060584,8.7809,170.88,170.8,18.1003]
[1641253060784,1.2498,170.91,170.8,18.1003]
[1641253061586,10.029,170.91,170.81,33.5776]
[1641253061794,1.2498,170.91,170.81,33.5776]
[1641253061986,1.2498,170.91,170.81,34.3376]
[1641253062886,1.2498,170.91,170.81,33.0751]
[1641253063086,1.5098,170.91,170.81,33.0751]
[1641253063388,1.2498,170.91,170.81,34.3547]
[1641253064388,10.0291,170.91,170.81,34.3547]
[1641253065190,1.2498,170.91,170.81,34.3547]
[1641253069897,10.0294,170.91,170.81,34.3547]
[1641253070098,1.5098,170.91,170.81,34.3547]
[1641253071303,8.7803,170.89,170.81,33.0751]
[1641253071500,2.66072165,170.88,170.81,33.0751]
[1641253072300,83.9856,170.92,170.81,33.0751]
[1641253072522,75.2065,170.92,170.82,1.3264]
[1641253072723,75.2065,170.92,170.82,30.5869]
[1641253072926,75.2065,170.92,170.82,31.3469]
[1641253073122,76.4658,170.92,170.83,23.2528]
[1641253073324,2.95559415,170.91,170.83,23.2528]
[1641253073524,2.95559415,170.91,170.83,24.0128]
[1641253073726,2.95559415,170.91,170.85,8.7788]
[1641253073927,3.21559415,170.91,170.85,0.5]
[1641253074127,2.95559415,170.91,170.85,0.5]
[1641253074526,2.95559415,170.91,170.83,24.0128]
[1641253074725,2.95559415,170.91,170.85,8.7788]
[1641253074926,2.95559415,170.91,170.85,9.2788]
[1641253075132,2.95559415,170.91,170.85,9.5388]
[1641253077130,2.95559415,170.91,170.85,9.2788]
[1641253078629,76.4658,170.92,170.85,9.5388]
[1641253079031,76.4658,170.92,170.86,38.04527368]
[1641253079435,1.2593,170.92,170.86,38.30527368]
[1641253079633,1.2593,170.92,170.86,38.80527368]
[1641253080234,42.5787164,170.93,170.86,38.30527368]
[1641253080433,8.7786,170.93,170.86,38.30527368]
[1641253080639,1.2708,170.94,170.86,38.80527368]
[1641253081033,1.5308,170.94,170.86,38.80527368]
[1641253081436,30.22927122,170.93,170.86,38.80527368]
[1641253082235,2.73407698,170.93,170.86,38.80527368]
[1641253082633,2.73407698,170.93,170.86,9.5386]
[1641253085838,25.6859,170.95,170.86,9.5386]
[1641253086036,25.6859,170.95,170.9,8.7764]
[1641253086235,75.9699,170.96,170.9,8.7764]
[1641253086436,101.91407758,170.96,170.9,9.0364]
[1641253086839,2.23615154,170.95,170.9,9.0364]
[1641253087039,1.2592,170.98,170.9,9.5364]
[1641253087244,1.2592,170.98,170.9,40.0304]
[1641253088043,29.4236217,170.97,170.9,40.0304]
[1641253090244,29.4236217,170.97,170.9,16.0414]
[1641253090443,29.4236217,170.97,170.9,9.2764]
[1641253090848,29.4236217,170.97,170.9,8.7764]
[1641253091052,29.6836217,170.97,170.88,8.777]
[1641253091281,29.6836217,170.97,170.81,79.6858]
[1641253091449,1.2646,170.96,170.82,8.56]
[1641253091649,8.7785,170.94,170.83,53.3817528]
[1641253091851,3.01338851,170.93,170.83,54.6964528]
[1641253092050,3.27338851,170.93,170.83,55.1964528]
[1641253092251,3.01338851,170.93,170.86,8.7785]
[1641253092455,1.2551,170.96,170.86,9.2785]
[1641253093252,1.2551,170.96,170.86,9.5385]
[1641253093852,1.2551,170.96,170.9,8.7763]
[1641253094053,26.6469622,170.97,170.9,9.0363]
[1641253094652,26.6469622,170.97,170.9,31.51361851]
[1641253094853,26.6469622,170.97,170.9,32.01361851]
[1641253095055,26.6469622,170.97,170.9,31.75361851]
[1641253095254,26.6469622,170.97,170.9,9.2763]
[1641253095852,35.4239622,170.97,170.89,8.777]
[1641253096053,35.6839622,170.97,170.87,24.1016]
[1641253096253,35.6839622,170.97,170.87,0.5]
[1641253096653,35.6839622,170.97,170.85,30.60677282]
[1641253096853,26.6469622,170.97,170.85,39.16677282]
[1641253097053,2.82061615,170.95,170.85,39.16677282]
[1641253097253,2.82061615,170.95,170.86,24.266]
[1641253097452,2.82061615,170.95,170.86,25.026]
[1641253097854,2.82061615,170.95,170.86,24.766]
[1641253098655,2.82061615,170.95,170.9,8.7764]
[1641253100956,2.82061615,170.95,170.9,9.5364]
[1641253101158,1.345,170.96,170.9,9.5364]
[1641253101357,23.0256,171.01,170.9,9.5364]
[1641253101557,1.2934,171.0,170.9,9.5364]
[1641253101760,1.2934,171.0,170.9,18.0964]
[1641253101958,75.9175,171.04,170.91,22.6443]
[1641253102160,28.61382311,171.03,170.94,8.7732]
[1641253102357,28.61382311,171.03,170.95,23.564]
[1641253102559,28.61382311,171.03,170.95,29.463]
[1641253102762,28.61382311,171.03,170.95,29.703]
[1641253103160,28.61382311,171.03,170.95,38.4769]
[1641253103564,28.87382311,171.03,170.95,6.139]
[1641253103760,8.7749,171.02,170.92,30.81384995]
[1641253104064,0.26,171.02,170.92,2.0763]
[1641253104261,0.26,171.02,170.92,1.8163]
[1641253104461,0.26,171.02,170.92,2.0763]
[1641253104663,1.2517,171.02,170.92,2.0763]
[1641253104864,8.7756,171.0,170.92,2.0763]
[1641253105064,2.98951035,170.99,170.92,2.0763]
[1641253105468,3.24951035,170.99,170.92,0.5]
[1641253105664,3.24951035,170.99,170.9,23.6981]
[1641253105865,8.7765,170.98,170.9,23.6981]
[1641253106068,3.24951035,170.99,170.9,23.6981]
[1641253106486,2.98951035,170.99,170.9,55.5579459]
[1641253106685,1.2517,171.02,170.9,55.5579459]
[1641253106888,8.7748,171.01,170.9,64.5944459]
[1641253107388,8.7748,171.01,170.91,1.2331]
[1641253107586,2.20794336,171.0,170.91,1.4931]
[1641253107789,2.20794336,171.0,170.91,1.7331]
[1641253107987,10.98344336,171.0,170.91,0.5]
[1641253108187,2.46794336,171.0,170.91,0.5]
[1641253108387,1.3049,170.99,170.89,0.26]
[1641253108587,1.5649,170.99,170.88,35.3164]
[1641253108988,10.3408,170.99,170.91,8.7756]
[1641253109385,10.3408,170.99,170.91,9.2756]
[1641253110588,1.3049,170.99,170.91,9.5356]
[1641253111187,2.20794336,171.0,170.91,9.5356]
[1641253111686,2.20794336,171.0,170.92,23.116]
[1641253111886,2.20794336,171.0,170.93,8.7748]
[1641253112086,2.20794336,171.0,170.93,9.0348]
[1641253112385,2.20794336,171.0,170.93,9.5348]
[1641253113187,2.20794336,171.0,170.93,9.2748]
[1641253113487,2.20794336,171.0,170.92,23.116]
[1641253113488,11.24324336,171.0,170.92,23.116]
[1641253113689,11.24324336,171.0,170.92,0.5]
[1641253114094,10.74324336,171.0,170.92,0.5]
[1641253114296,10.74324336,171.0,170.91,2.1151]
[1641253115096,10.74324336,171.0,170.92,8.7754]
[1641253115498,10.48324336,171.0,170.92,9.5354]
[1641253115997,10.74324336,171.0,170.92,9.2754]
[1641253116801,8.7758,170.99,170.92,9.2754]
[1641253119002,8.7758,170.99,170.92,9.5354]
[1641253119403,10.48324336,171.0,170.92,9.5354]
[1641253119604,10.74324336,171.0,170.92,9.2754]
[1641253119802,9.74324336,171.0,170.92,9.2754]
[1641253121106,9.48324336,171.0,170.92,9.2754]
[1641253121508,9.74324336,171.0,170.92,9.2754]
[1641253121708,8.7759,170.99,170.92,0.5]
[1641253121907,8.7759,170.99,170.91,0.5]
[1641253122107,8.7759,170.99,170.91,0.76]
[1641253122307,0.70794336,171.0,170.91,0.26]
[1641253122508,0.70794336,171.0,170.9,32.0152]
[1641253123013,0.70794336,171.0,170.93,8.775]
[1641253123407,0.70794336,171.0,170.93,9.275]
[1641253124309,9.48334336,171.0,170.93,0.5]
[1641253124508,9.74334336,171.0,170.93,0.5]
[1641253124809,1.3463,171.02,170.92,0.76]
[1641253125209,1.3463,171.02,170.92,0.26]
[1641253125410,8.7728,171.05,170.95,8.7739]
[1641253125614,2.5733,171.07,170.95,15.2579]
[1641253125816,2.47709851,171.09,170.96,1.2602]
[1641253126013,2.47709851,171.09,170.97,8.56]
[1641253126214,26.78018051,171.09,170.98,50.10188636]
[1641253126413,74.6362,171.1,170.98,59.16188636]
[1641253126613,74.6362,171.1,171.0,8.7699]
[1641253126816,1.3407,171.12,171.0,23.5509]
[1641253127013,0.29353777,171.16,171.01,24.8597]
[1641253127212,1.2991,171.14,171.01,33.4197]
[1641253127417,3.02303365,171.11,171.01,34.1797]
[1641253127613,3.02303365,171.11,171.02,8.769]
[1641253128016,3.28303365,171.11,171.02,9.529]
[1641253128417,3.78303365,171.11,171.02,9.529]
[1641253128815,2.8058622,171.08,171.02,9.269]
[1641253129016,2.8058622,171.08,171.01,33.4197]
[1641253129217,2.8058622,171.08,171.01,33.9197]
[1641253129617,3.0658622,171.08,171.01,33.9197]
[1641253130624,3.0658622,171.08,170.96,86.4801]
[1641253130826,3.0658622,171.08,170.96,86.9801]
[1641253131527,3.0658622,171.08,170.97,45.43906542]
[1641253131725,3.0658622,171.08,170.97,22.67706542]
[1641253131926,8.7733,171.05,170.97,23.17706542]
[1641253132126,3.0658622,171.08,170.97,23.17706542]
[1641253132327,0.26,171.05,170.97,23.17706542]
[1641253132541,3.0658622,171.08,170.97,23.17706542]
[1641253132940,3.0658622,171.08,170.97,24.50236542]
[1641253133343,11.8380622,171.08,170.97,33.53456542]
[1641253133541,11.8380622,171.08,170.98,23.0007]
[1641253133945,3.0658622,171.08,170.98,23.7607]
[1641253134641,8.7722,171.07,170.98,32.5327]
[1641253135044,9.0322,171.07,170.98,32.5327]
[1641253135542,0.26,171.07,170.94,24.6296]
[1641253135742,0.76,171.07,170.93,8.7742]
[1641253135945,8.56,171.06,170.92,25.0803]
[1641253136143,2.52078505,171.05,170.92,25.0803]
[1641253136347,3.02078505,171.05,170.92,25.0803]
[1641253136543,3.28078505,171.05,170.92,25.0803]
[1641253136845,8.7758,171.0,170.92,25.0803]
[1641253137047,2.93217483,170.99,170.92,25.0803]
[1641253137245,1.8261,171.05,170.92,25.0803]
[1641253137745,1.5861,171.05,170.92,25.0803]
[1641253137947,10.3597,171.05,170.92,42.6756]
[1641253138145,1.5861,171.05,170.93,24.8095]
[1641253138345,32.75734835,171.04,170.93,25.3095]
[1641253138549,33.01734835,171.04,170.93,25.5695]
[1641253139347,41.79144835,171.04,170.93,34.344]
[1641253139547,41.53144835,171.04,170.93,34.344]
[1641253141355,11.55868099,171.04,170.93,34.344]
[1641253142756,8.7742,171.03,170.93,34.344]
[1641253142958,0.26,171.03,170.93,34.084]
[1641253143358,0.26,171.03,170.93,34.344]
[1641253143558,2.78458099,171.04,170.93,34.344]
[1641253144058,8.7746,171.02,170.93,34.344]
[1641253144459,0.26,171.02,170.93,34.344]
[1641253144960,11.55858099,171.04,170.93,34.344]
[1641253145558,2.78458099,171.04,170.93,34.344]
[1641253145759,2.78458099,171.04,170.93,34.084]
[1641253145960,8.775,171.02,170.93,34.344]
[1641253146364,9.035,171.02,170.93,34.344]
[1641253147163,0.26,171.02,170.93,34.344]
[1641253147562,2.78458099,171.04,170.93,34.344]
[1641253149062,11.55848099,171.04,170.93,34.344]
[1641253149262,2.78458099,171.04,170.93,34.344]
[1641253150664,8.7746,171.02,170.93,34.344]
[1641253150866,2.26235302,171.01,170.93,33.844]
[1641253151070,2.52235302,171.01,170.93,33.584]
[1641253151288,2.52235302,171.01,170.93,24.8095]
[1641253152470,26.17254654,170.98,170.92,1.2344]
[1641253152670,26.17254654,170.98,170.9,1.3308]
[1641253152969,26.17254654,170.98,170.88,77.3218]
[1641253152970,26.43254654,170.98,170.88,77.3218]
[1641253153570,35.20904654,170.98,170.88,77.3218]
[1641253153974,35.20904654,170.98,170.88,77.8218]
[1641253154972,35.20904654,170.98,170.88,77.3218]
[1641253156370,35.20904654,170.98,170.88,78.0818]
[1641253156575,35.20904654,170.98,170.88,77.8218]
[1641253157372,35.20904654,170.98,170.88,78.0818]
[1641253157578,35.70904654,170.98,170.88,86.5993]
[1641253157775,35.70904654,170.98,170.89,22.6384]
[1641253158475,35.70904654,170.98,170.88,1.2418]
[1641253158674,35.70904654,170.98,170.84,6.10611548]
[1641253158901,8.56,170.97,170.85,24.3416]
[1641253159104,8.7802,170.91,170.85,24.3416]
[1641253159299,8.7802,170.91,170.83,1.2381]
[1641253159300,2.84528873,170.9,170.83,1.2381]
[1641253159500,33.7591902,170.9,170.82,79.4261]
[1641253160100,33.7591902,170.9,170.81,49.2137]
[1641253160499,33.7591902,170.9,170.81,49.7137]
[1641253160701,11.61251015,170.87,170.81,49.7137]
[1641253161102,11.87251015,170.87,170.81,49.7137]
[1641253161500,9.0418,170.87,170.81,49.7137]
[1641253163103,9.0418,170.87,170.81,49.2137]
[1641253163918,2.22477099,170.86,170.81,49.2137]
[1641253164207,2.48477099,170.86,170.81,49.2137]
[1641253164607,0.26,170.86,170.81,47.9638]
[1641253164806,0.26,170.86,170.77,86.31425999]
[1641253165106,60.18860147,170.9,170.8,0.5]
[1641253165308,60.68860147,170.9,170.8,0.5]
[1641253165505,61.91810147,170.9,170.78,24.1568]
[1641253165908,61.91810147,170.9,170.78,56.10084335]
[1641253166305,2.85969998,170.89,170.78,56.10084335]
[1641253166506,3.11969998,170.89,170.78,56.10084335]
[1641253166707,8.7829,170.85,170.78,24.1568]
[1641253167005,9.0429,170.85,170.78,24.1568]
[1641253167606,9.0429,170.85,170.78,32.9393]
[1641253170312,8.7821,170.86,170.78,32.9393]
[1641253170514,81.0086,170.89,170.78,41.95399368]
[1641253170813,30.65390147,170.9,170.8,8.7797]
[1641253171016,9.8002,170.96,170.82,30.81909712]
[1641253171317,8.7793,170.92,170.83,25.1774]
[1641253171515,8.7793,170.92,170.83,25.4374]
[1641253171816,8.7793,170.92,170.83,25.9374]
[1641253172013,8.7793,170.92,170.84,8.779]
[1641253172414,8.7793,170.92,170.84,9.539]
[1641253172619,8.7784,170.94,170.84,9.539]
[1641253173214,8.7784,170.94,170.85,1.42669368]
[1641253173417,8.7784,170.94,170.87,8.7779]
[1641253173818,8.7784,170.94,170.87,9.5379]
[1641253174116,9.0384,170.94,170.83,23.8599]
[1641253174516,9.0384,170.94,170.83,24.3599]
[1641253175517,9.5384,170.94,170.83,24.3599]
[1641253175717,9.5384,170.94,170.83,33.1397]
[1641253177418,10.8559,170.94,170.83,32.6397]
[1641253179218,10.8559,170.94,170.83,32.8997]
[1641253180223,10.8559,170.94,170.83,32.6397]
[1641253181524,10.3559,170.94,170.83,34.82639368]
[1641253182124,10.3559,170.94,170.85,8.7789]
[1641253182330,10.3559,170.94,170.85,9.2789]
[1641253182725,10.3559,170.94,170.84,1.251]
[1641253183128,18.9159,170.94,170.83,23.8599]
[1641253183325,19.4159,170.94,170.83,24.3599]
[1641253183526,19.4159,170.94,170.83,0.5]
[1641253183926,8.7818,170.87,170.8,33.8026]
[1641253184126,32.95241484,170.86,170.8,33.8026]
[1641253184529,30.1773935,170.86,170.8,33.8026]
[1641253186831,29.9173935,170.86,170.8,33.8026]
[1641253187530,29.9173935,170.86,170.8,34.0626]
[1641253188229,2.25927694,170.87,170.8,34.0626]
[1641253188830,2.25927694,170.87,170.8,33.8026]
[1641253189031,11.04097694,170.87,170.8,33.8026]
[1641253189234,26.25567948,170.86,170.8,33.8026]
[1641253189639,26.51567948,170.86,170.8,33.8026]
[1641253189839,26.25567948,170.86,170.8,33.8026]
[1641253190536,26.25567948,170.86,170.8,34.0626]
[1641253190935,26.25567948,170.86,170.8,33.5626]
[1641253191137,26.25567948,170.86,170.8,34.0626]
[1641253191943,26.51567948,170.86,170.8,33.8026]
[1641253192342,26.51567948,170.86,170.8,33.3026]
[1641253192965,26.51567948,170.86,170.8,25.0214]
[1641253193164,35.29797948,170.86,170.8,0.5]
[1641253193365,26.51567948,170.86,170.79,0.5]
[1641253193765,26.51567948,170.86,170.78,24.8098]
[1641253194567,26.51567948,170.86,170.78,25.0698]
[1641253195668,8.7827,170.85,170.78,33.8525]
[1641253196068,2.55338127,170.84,170.78,33.8525]
[1641253198272,2.55338127,170.84,170.78,33.5925]
[1641253198472,2.81338127,170.84,170.78,33.5925]
[1641253198972,11.59648127,170.84,170.78,33.5925]
[1641253201476,8.7835,170.83,170.78,24.8098]
[1641253201675,2.81338127,170.84,170.78,24.8098]
[1641253201877,0.26,170.83,170.75,1.42669368]
[1641253202076,2.81338127,170.84,170.77,0.5]
[1641253202378,2.81338127,170.84,170.75,27.08239368]
[1641253203076,2.81338127,170.84,170.75,27.34239368]
[1641253203277,2.81338127,170.84,170.75,27.08239368]
[1641253203679,8.7842,170.82,170.75,35.86679368]
[1641253203877,8.7842,170.82,170.75,36.36679368]
[1641253204077,9.0442,170.82,170.75,36.36679368]
[1641253205079,9.0442,170.82,170.75,36.62679368]
[1641253205482,9.0442,170.82,170.75,36.36679368]
[1641253206081,2.95010068,170.81,170.75,36.36679368]
[1641253206282,2.95010068,170.81,170.75,34.9401]
[1641253206484,3.21010068,170.81,170.75,34.9401]
[1641253206683,0.26,170.81,170.75,34.9401]
[1641253207083,9.0442,170.82,170.75,34.9401]
[1641253207485,9.0442,170.82,170.75,35.2001]
[1641253207684,2.50068321,170.81,170.75,9.5444]
[1641253207884,11.28538321,170.81,170.75,9.2844]
[1641253208084,11.54538321,170.81,170.75,9.2844]
[1641253208283,2.76068321,170.81,170.74,1.2642]
[1641253208486,2.76068321,170.81,170.72,93.7]
[1641253208890,3.26068321,170.81,170.66,8.56]
[1641253209085,34.20710849,170.74,170.67,25.6977]
[1641253209686,34.20710849,170.74,170.67,34.4854]
[1641253209888,34.20710849,170.74,170.67,25.6977]
[1641253210091,34.46710849,170.74,170.67,25.6977]
[1641253210486,8.7893,170.73,170.67,25.6977]
[1641253210886,9.0493,170.73,170.67,25.6977]
[1641253211514,0.26,170.73,170.67,25.6977]
[1641253211917,34.46710849,170.74,170.67,25.6977]
[1641253212618,8.7896,170.72,170.67,25.6977]
[1641253212817,8.7896,170.72,170.67,24.3755]
[1641253213316,2.68461309,170.71,170.67,24.3755]
[1641253213516,2.68461309,170.71,170.65,8.7894]
[1641253213715,2.68461309,170.71,170.65,9.2894]
[1641253213916,2.68461309,170.71,170.65,0.5]
[1641253214216,2.94461309,170.71,170.65,0.5]
[1641253214416,2.94461309,170.71,170.61,94.2]
[1641253214616,2.94461309,170.71,170.61,93.7]
[1641253214816,2.94461309,170.71,170.58,71.02805173]
[1641253215015,2.94461309,170.71,170.59,0.5]
[1641253215217,2.94461309,170.71,170.59,1.92669368]
[1641253215417,3.44461309,170.71,170.59,1.92669368]
[1641253215618,8.7924,170.67,170.6,8.7916]
[1641253215816,2.93634762,170.66,170.6,8.7916]
[1641253216016,3.19634762,170.66,170.6,9.2916]
[1641253216817,3.19634762,170.66,170.6,0.5]
[1641253217015,2.93634762,170.66,170.6,0.5]
[1641253217216,2.93634762,170.66,170.58,40.7591]
[1641253217819,3.19634762,170.66,170.58,42.18579368]
[1641253218820,0.26,170.66,170.58,42.18579368]
[1641253219019,36.00823884,170.67,170.58,42.18579368]
[1641253219020,36.26823884,170.67,170.58,42.18579368]
[1641253219420,27.47583884,170.67,170.58,42.18579368]
[1641253220826,8.7918,170.68,170.58,42.18579368]
[1641253221025,37.8636,170.74,170.58,58.65782198]
[1641253221321,1.3443,170.75,170.6,8.789]
[1641253221522,76.7263,170.73,170.61,24.5802]
[1641253221723,76.7263,170.73,170.61,35.66776615]
[1641253221923,2.1954242,170.72,170.62,27.48644352]
[1641253222222,2.1954242,170.72,170.63,23.1542]
[1641253222422,2.1954242,170.72,170.65,8.7891]
[1641253222622,106.07249334,170.73,170.65,8.7891]
[1641253222623,76.4663,170.73,170.65,8.7891]
[1641253222824,1.3443,170.75,170.65,9.5491]
[1641253223024,8.56,170.79,170.65,9.5491]
[1641253223228,8.56,170.81,170.66,24.0884]
[1641253223424,9.2872,170.78,170.67,8.7868]
[1641253223624,2.77914447,170.77,170.67,8.7868]
[1641253223825,2.77914447,170.77,170.67,9.5468]
[1641253224124,2.77914447,170.77,170.67,10.97349368]
[1641253224525,3.03914447,170.77,170.67,10.97349368]
[1641253225529,2.77914447,170.77,170.67,9.5468]
[1641253226026,11.56644447,170.77,170.67,9.5468]
[1641253227036,11.82644447,170.77,170.67,9.5468]
[1641253228540,3.03914447,170.77,170.67,0.5]
[1641253228939,3.53914447,170.77,170.63,26.7547]
[1641253229138,3.53914447,170.77,170.63,26.2547]
[1641253229339,3.03914447,170.77,170.63,26.7547]
[1641253229544,8.7888,170.75,170.63,26.7547]
[1641253229740,2.74326346,170.74,170.63,28.0524]
[1641253229943,2.74326346,170.74,170.65,8.7892]
[1641253230143,75.6783,170.77,170.65,8.7892]
[1641253230341,75.6783,170.77,170.66,24.3502]
[1641253230541,8.7883,170.76,170.66,24.6102]
[1641253230745,0.26,170.76,170.66,24.8502]
[1641253230942,0.26,170.76,170.66,0.5]
[1641253231151,3.04466872,170.75,170.66,0.5]
[1641253231343,3.04466872,170.75,170.64,9.06]
[1641253231543,3.30466872,170.75,170.64,17.8493]
[1641253231744,12.09336872,170.75,170.64,19.27599368]
[1641253231944,12.09336872,170.75,170.64,19.53599368]
[1641253232145,12.09336872,170.75,170.65,23.7597]
[1641253232344,12.09336872,170.75,170.65,24.2597]
[1641253232546,12.09336872,170.75,170.65,24.5197]
[1641253232747,8.7889,170.74,170.65,24.5197]
[1641253232946,0.26,170.74,170.65,24.5197]
[1641253233547,3.30466872,170.75,170.65,24.5197]
[1641253234749,8.7889,170.74,170.65,33.309]
[1641253234950,9.0489,170.74,170.65,33.309]
[1641253240576,75.4183,170.77,170.65,33.309]
[1641253240877,25.0212,170.8,170.65,43.29569368]
[1641253241079,79.5813,170.83,170.66,1.3161]
[1641253241278,79.5813,170.83,170.67,17.345]
[1641253241479,79.5813,170.83,170.67,19.03169368]
[1641253241677,79.5813,170.83,170.68,1.42669368]
[1641253241678,8.7857,170.81,170.68,1.42669368]
[1641253241881,27.20099159,170.82,170.69,31.45093115]
[1641253242079,27.20099159,170.82,170.69,31.71093115]
[1641253242277,27.46099159,170.82,170.69,32.21093115]
[1641253242677,28.74549159,170.82,170.69,32.21093115]
[1641253243079,28.74549159,170.82,170.7,23.8108]
[1641253243278,8.7859,170.8,170.7,32.5967]
[1641253243478,2.84573001,170.79,170.7,33.3567]
[1641253243880,3.10573001,170.79,170.7,9.5459]
[1641253244881,11.89203001,170.79,170.7,9.5459]
[1641253245382,3.10573001,170.79,170.7,9.2859]
[1641253246582,3.10573001,170.79,170.7,0.5]
[1641253246983,3.10573001,170.79,170.69,10.793]
[1641253247583,8.7877,170.77,170.69,1.7458]
[1641253247783,2.38419583,170.76,170.69,0.5]
[1641253247987,2.64419583,170.76,170.68,23.4981]
[1641253248283,2.64419583,170.76,170.68,0.5]
[1641253248483,2.64419583,170.76,170.65,9.06]
[1641253248685,2.64419583,170.76,170.65,34.81304314]
[1641253249083,2.64419583,170.76,170.65,35.07304314]
[1641253249683,8.7894,170.73,170.65,43.86214314]
[1641253249887,2.88098616,170.72,170.65,43.86214314]
[1641253250088,3.14098616,170.72,170.65,43.86214314]
[1641253250689,0.26,170.72,170.65,43.86214314]
[1641253251090,1.2466,170.76,170.65,43.86214314]
[1641253251296,1.2466,170.76,170.66,23.2824]
[1641253251493,1.2466,170.76,170.66,23.5424]
[1641253251691,2.31369289,170.75,170.67,8.7872]
[1641253251891,2.31369289,170.75,170.67,9.2872]
[1641253252091,2.31369289,170.75,170.67,9.5472]
[1641253253192,2.57369289,170.75,170.67,9.2872]
[1641253253392,2.57369289,170.75,170.67,0.5]
[1641253253797,8.7889,170.74,170.66,25.0329]
[1641253253994,9.0489,170.74,170.66,25.0329]
[1641253254592,9.0489,170.74,170.66,25.2929]
[1641253254994,1.65355268,170.86,170.76,6.26047752]
[1641253255195,1.65355268,170.86,170.76,14.82047752]
[1641253255394,1.65355268,170.86,170.77,1.42669368]
[1641253255595,1.65355268,170.86,170.78,8.56]
[1641253255995,1.65355268,170.86,170.79,33.20924162]
[1641253256195,1.65355268,170.86,170.8,8.56]
[1641253256397,30.24003146,170.89,170.8,19.26639368]